bitfinex/quotes_SOLUSD_20230113
["timestamp","ask_amount","ask_price","bid_price","bid_amount"]
[1673642698692,37.0,17.177,17.155,20.0]
[1673642699087,37.0,17.177,17.156,17.0]
[1673642699297,20.0,17.176,17.152,128.4684]
[1673642699518,17.0,17.175,17.157,17.0]
[1673642699734,20.0,17.174,17.157,17.0]
[1673642700352,20.0,17.174,17.152,108.4684]
[1673642700353,37.0,17.173,17.152,108.4684]
[1673642700581,37.0,17.173,17.15,69.7736044]
[1673642700582,46.26,17.17,17.15,69.7736044]
[1673642700789,150.91673854,17.169,17.15,69.7736044]
[1673642700996,170.98230647,17.169,17.15,116.0336044]
[1673642701315,131.7733,17.169,17.151,20.0]
[1673642701712,131.7733,17.169,17.15,136.05864857]
[1673642702469,131.7733,17.169,17.151,17.0]
[1673642702869,131.7733,17.169,17.152,20.0]
[1673642703708,20.0,17.169,17.152,20.0]
[1673642704037,20.0,17.169,17.153,20.08791832]
[1673642704243,131.5271,17.175,17.155,20.0]
[1673642704650,111.5271,17.175,17.156,20.08791832]
[1673642704878,111.5271,17.175,17.157,20.0]
[1673642705096,111.5271,17.175,17.158,20.0]
[1673642705311,111.5271,17.175,17.159,20.0]
[1673642705621,111.5271,17.175,17.16,46.19]
[1673642705846,111.5271,17.175,17.16,66.27791832]
[1673642706142,109.9656,17.181,17.161,40.08791832]
[1673642706360,131.5271,17.18,17.161,40.08791832]
[1673642706673,131.5271,17.18,17.16,163.5725]
[1673642707085,131.5271,17.18,17.161,17.0]
[1673642708135,131.5271,17.18,17.161,37.08791832]
[1673642708330,131.5271,17.18,17.162,20.0]
[1673642708764,131.5271,17.18,17.163,112.0259]
[1673642708974,131.5271,17.18,17.164,20.0]
[1673642709180,131.5271,17.18,17.164,40.08791832]
[1673642709400,131.5271,17.18,17.165,17.0]
[1673642709832,131.5271,17.18,17.163,112.0259]
[1673642711292,20.0,17.179,17.163,112.0259]
[1673642711503,20.0,17.178,17.163,112.0259]
[1673642712040,20.0,17.178,17.155,20.0]
[1673642712254,37.0,17.177,17.156,20.0]
[1673642712654,49.9691928,17.178,17.156,20.0]
[1673642712863,20.0,17.178,17.156,20.0]
[1673642713098,49.9691928,17.178,17.157,20.07392305]
[1673642713285,20.0,17.177,17.155,118.0994]
[1673642713496,20.0,17.176,17.155,118.0994]
[1673642713916,49.9691928,17.176,17.155,118.0994]
[1673642714154,20.0,17.175,17.155,118.0994]
[1673642714355,20.0,17.174,17.155,118.0994]
[1673642714666,49.9691928,17.174,17.155,118.0994]
[1673642717909,49.9691928,17.174,17.156,17.0]
[1673642718119,20.0,17.174,17.157,20.0]
[1673642718330,20.0,17.175,17.157,20.0]
[1673642718546,45.10859527,17.179,17.16,46.26]
[1673642718764,20.0,17.178,17.16,46.26]
[1673642719301,20.0,17.179,17.162,20.0]
[1673642719621,20.0,17.179,17.161,20.07392305]
[1673642721190,20.0,17.183,17.162,20.0]
[1673642721399,20.0,17.183,17.163,114.9243]
[1673642721605,65.10859527,17.188,17.163,155.0721461]
[1673642721819,65.10859527,17.188,17.163,254.07762305]
[1673642722039,20.0,17.186,17.163,254.07762305]
[1673642722254,20.0,17.185,17.163,254.07762305]
[1673642722462,65.10859527,17.185,17.163,254.07762305]
[1673642723190,20.0,17.185,17.163,254.07762305]
[1673642723937,82.1741632,17.187,17.17,46.19]
[1673642726145,110.9386,17.189,17.17,46.19]
[1673642726556,20.0,17.188,17.17,46.19]
[1673642726972,20.0,17.188,17.172,20.0]
[1673642727399,20.0,17.188,17.173,20.07392305]
[1673642727615,20.0,17.188,17.172,20.0]
[1673642728026,20.0,17.191,17.172,20.0]
[1673642728238,37.06556793,17.195,17.172,262.21642305]
[1673642728239,20.0,17.194,17.172,262.21642305]
[1673642729508,37.06556793,17.195,17.172,262.21642305]
[1673642729719,37.06556793,17.195,17.173,20.0]
[1673642730031,37.06556793,17.195,17.174,20.07392305]
[1673642730248,37.06556793,17.195,17.175,37.0]
[1673642730651,37.06556793,17.195,17.175,57.92057909]
[1673642730861,37.06556793,17.195,17.176,20.0]
[1673642731075,110.3629,17.197,17.18,46.19]
[1673642731282,46.09,17.21,17.181,112.163]
[1673642731508,138.0666,17.207,17.181,247.04097909]
[1673642731719,45.10859527,17.204,17.182,20.92057909]
[1673642731907,45.10859527,17.204,17.183,20.0]
[1673642731908,20.0,17.203,17.183,20.0]
[1673642732334,20.0,17.203,17.183,20.92057909]
[1673642732567,65.10859527,17.203,17.184,17.0]
[1673642733813,20.0,17.202,17.184,17.0]
[1673642734239,20.0,17.201,17.184,17.0]
[1673642734783,20.0,17.202,17.184,17.0]
[1673642735095,20.0,17.201,17.181,226.1204]
[1673642735697,103.23817722,17.202,17.181,226.1204]
[1673642736250,65.10859527,17.202,17.181,247.04097909]
[1673642736665,20.0,17.202,17.181,247.04097909]
[1673642736871,20.0,17.205,17.182,17.0]
[1673642738119,20.0,17.205,17.182,37.92057909]
[1673642738558,118.0666,17.207,17.19,46.26]
[1673642738875,118.0666,17.207,17.19,163.1466]
[1673642739624,118.0666,17.207,17.191,17.0]
[1673642741484,118.0666,17.207,17.19,116.8866]
[1673642741807,20.0,17.205,17.18,46.19]
[1673642742020,93.80848322,17.206,17.18,46.19]
[1673642742221,118.91707849,17.204,17.18,46.19]
[1673642742434,20.0,17.203,17.18,46.19]
[1673642743267,55.67890127,17.203,17.18,46.19]
[1673642743487,55.67890127,17.203,17.175,392.3]
[1673642743488,46.09,17.2,17.17,46.26]
[1673642743700,149.7159,17.199,17.17,46.26]
[1673642743925,20.0,17.198,17.17,46.26]
[1673642744248,20.0,17.196,17.17,46.26]
[1673642744564,92.07778807,17.195,17.17,46.26]
[1673642744777,20.0,17.193,17.17,46.26]
[1673642744962,20.0,17.192,17.17,46.26]
[1673642745175,49.9691928,17.192,17.17,46.26]
[1673642745390,20.0,17.192,17.17,46.26]
[1673642745599,29.9691928,17.192,17.173,17.0]
[1673642745816,20.0,17.191,17.173,17.0]
[1673642746334,111.604,17.19,17.173,17.0]
[1673642746538,20.0,17.189,17.173,17.0]
[1673642748013,20.0,17.189,17.174,20.0]
[1673642748557,20.0,17.189,17.17,46.26]
[1673642750331,20.0,17.198,17.18,46.26]
[1673642750548,29.9691928,17.196,17.181,17.0]
[1673642750910,29.9691928,17.196,17.181,126.0722]
[1673642751116,117.2787,17.199,17.181,126.0722]
[1673642751307,29.9691928,17.198,17.181,126.0722]
[1673642752781,40.0,17.197,17.181,17.0]
[1673642753105,20.0,17.197,17.181,17.0]
[1673642753330,29.9691928,17.196,17.181,17.0]
[1673642753511,20.0,17.195,17.181,17.0]
[1673642754478,43.93624862,17.198,17.181,17.0]
[1673642754918,147.2478928,17.199,17.181,17.0]
[1673642755114,147.2478928,17.199,17.181,134.6287]
[1673642755342,29.9691928,17.198,17.181,134.6287]
[1673642755645,20.0,17.197,17.181,134.6287]
[1673642756050,20.0,17.197,17.172,71.7731]
[1673642756051,29.9691928,17.196,17.172,71.7731]
[1673642756274,37.0,17.195,17.172,71.7731]
[1673642756488,20.0,17.194,17.172,71.7731]
[1673642756708,46.09,17.19,17.172,71.7731]
[1673642756906,20.0,17.189,17.172,71.7731]
[1673642757305,49.9691928,17.189,17.172,71.7731]
[1673642757512,169.2091928,17.189,17.172,71.7731]
[1673642757733,139.24,17.189,17.172,71.7731]
[1673642758165,139.24,17.189,17.173,20.0]
[1673642758356,139.24,17.189,17.174,17.0]
[1673642759227,139.24,17.189,17.172,71.7731]
[1673642759625,20.0,17.207,17.174,20.0]
[1673642759836,119.24,17.198,17.175,20.0]
[1673642760069,119.24,17.198,17.176,20.0]
[1673642760267,119.24,17.198,17.177,20.0]
[1673642760475,119.24,17.198,17.178,17.0]
[1673642760675,119.24,17.198,17.178,37.49486314]
[1673642760895,119.24,17.198,17.179,20.0]
[1673642761438,119.24,17.198,17.18,46.26]
[1673642761849,20.0,17.197,17.179,20.0]
[1673642762047,149.2091928,17.198,17.177,20.0]
[1673642762591,119.24,17.198,17.181,20.0]
[1673642762801,20.0,17.199,17.181,20.0]
[1673642763007,46.26,17.21,17.181,20.0]
[1673642763008,20.0,17.207,17.182,20.49486314]
[1673642763245,20.0,17.206,17.182,20.49486314]
[1673642763419,20.0,17.205,17.181,116.0696]
[1673642763619,20.0,17.204,17.181,136.56446314]
[1673642763831,20.0,17.203,17.181,136.56446314]
[1673642764993,20.0,17.202,17.182,17.0]
[1673642765193,20.0,17.201,17.182,17.0]
[1673642765843,118.3068,17.2,17.181,116.0696]
[1673642766053,20.0,17.198,17.181,116.0696]
[1673642767004,118.3068,17.2,17.181,116.0696]
[1673642767308,20.0,17.199,17.181,136.56446314]
[1673642768124,20.0,17.199,17.182,20.0]
[1673642768537,20.0,17.199,17.182,40.49486314]
[1673642769280,20.0,17.199,17.182,20.49486314]
[1673642769920,20.0,17.199,17.181,116.0696]
[1673642771682,20.0,17.199,17.181,136.56446314]
[1673642773065,40.0,17.199,17.181,116.0696]
[1673642773404,17.0,17.198,17.175,20.49486314]
[1673642773607,40.0,17.197,17.175,20.49486314]
[1673642774843,17.0,17.196,17.17,46.26]
[1673642775265,20.0,17.195,17.171,20.49486314]
[1673642775480,20.0,17.194,17.171,20.49486314]
[1673642775694,20.0,17.193,17.171,20.49486314]
[1673642775915,46.09,17.19,17.17,46.26]
[1673642776225,40.0,17.189,17.16,46.7]
[1673642776418,2.31712089,17.188,17.161,117.8867]
[1673642776637,26.02962089,17.188,17.161,117.8867]
[1673642776846,2.31712089,17.186,17.161,117.8867]
[1673642777055,19.31712089,17.186,17.161,117.8867]
[1673642777251,162.8329928,17.185,17.161,117.8867]
[1673642777467,20.0,17.183,17.161,117.8867]
[1673642777678,2.33299036,17.181,17.161,117.8867]
[1673642777888,20.0,17.182,17.161,117.8867]
[1673642778098,20.0,17.182,17.161,138.38156314]
[1673642778325,20.0,17.183,17.161,138.38156314]
[1673642778524,1.97991428,17.182,17.161,138.38156314]
[1673642779788,1.97991428,17.182,17.161,117.8867]
[1673642780205,2.17784828,17.183,17.161,117.8867]
[1673642780542,20.0,17.184,17.165,20.0]
[1673642780743,20.0,17.184,17.17,46.26]
[1673642781148,112.8638,17.185,17.17,46.26]
[1673642781366,112.8638,17.185,17.171,20.49486314]
[1673642782948,112.8638,17.185,17.17,46.26]
[1673642783905,112.8638,17.185,17.17,66.75486314]
[1673642784428,112.8638,17.185,17.171,17.0]
[1673642784953,112.8638,17.185,17.171,37.49486314]
[1673642785152,20.0,17.191,17.171,37.49486314]
[1673642785361,132.7488,17.19,17.172,110.9781]
[1673642786404,20.0,17.189,17.172,110.9781]
[1673642786614,20.0,17.188,17.172,110.9781]
[1673642788297,40.0,17.189,17.172,110.9781]
[1673642789348,20.0,17.188,17.173,17.0]
[1673642789561,20.0,17.188,17.172,110.9781]
[1673642790092,20.0,17.188,17.17,46.26]
[1673642791455,17.0,17.187,17.17,46.26]
[1673642791663,20.0,17.186,17.163,71.7731]
[1673642791877,39.45744803,17.185,17.163,71.7731]
[1673642792081,20.0,17.184,17.163,71.7731]
[1673642792294,20.0,17.182,17.163,71.7731]
[1673642792618,135.03044803,17.181,17.163,71.7731]
[1673642795556,20.0,17.18,17.163,71.7731]
[1673642795766,22.45744803,17.179,17.163,71.7731]
[1673642796615,22.45744803,17.179,17.164,17.0]
[1673642796827,2.45744803,17.179,17.164,17.0]
[1673642797020,20.0,17.18,17.164,17.0]
[1673642797230,40.0,17.18,17.164,17.0]
[1673642797659,1.93897122,17.179,17.164,17.0]
[1673642799779,40.0,17.18,17.164,17.0]
[1673642800093,1.9259905,17.179,17.164,17.0]
[1673642800309,20.0,17.18,17.164,17.0]
[1673642801879,40.0,17.18,17.164,17.0]
[1673642802179,40.0,17.18,17.163,71.7731]
[1673642802180,20.0,17.179,17.163,71.7731]
[1673642802389,20.0,17.179,17.15,116.0336044]
[1673642802612,3.54146136,17.178,17.153,137.6075]
[1673642802818,3.54146136,17.178,17.155,20.80950024]
[1673642803883,50.51065416,17.178,17.153,117.6075]
[1673642804090,63.92775528,17.177,17.153,117.6075]
[1673642804291,40.54146136,17.176,17.153,117.6075]
[1673642804617,3.54146136,17.174,17.153,117.6075]
[1673642804801,3.54146136,17.172,17.153,117.6075]
[1673642805015,23.54146136,17.172,17.153,117.6075]
[1673642805227,43.54146136,17.172,17.153,117.6075]
[1673642805659,3.98679979,17.169,17.15,69.7736044]
[1673642805875,40.98679979,17.169,17.15,69.7736044]
[1673642806066,23.98679979,17.169,17.15,69.7736044]
[1673642806509,17.0,17.168,17.15,69.7736044]
[1673642806696,20.0,17.167,17.15,69.7736044]
[1673642807961,23.98679979,17.169,17.15,69.7736044]
[1673642808290,43.98679979,17.169,17.15,69.7736044]
[1673642808484,20.98679979,17.168,17.15,69.7736044]
[1673642808695,20.0,17.167,17.15,69.7736044]
[1673642810907,3.98679979,17.168,17.15,69.7736044]
[1673642811123,289.34157798,17.186,17.15,69.7736044]
[1673642811124,3.98679979,17.169,17.151,20.0]
[1673642811324,3.98679979,17.171,17.152,17.0]
[1673642811972,46.26,17.17,17.151,20.80950024]
[1673642812180,46.26,17.17,17.15,116.0336044]
[1673642812181,3.98679979,17.168,17.15,69.7736044]
[1673642812607,50.95599259,17.168,17.15,69.7736044]
[1673642812800,20.0,17.167,17.15,69.7736044]
[1673642813131,20.0,17.165,17.15,69.7736044]
[1673642813445,37.0,17.164,17.15,69.7736044]
[1673642813642,20.0,17.163,17.15,69.7736044]
[1673642813967,37.0,17.162,17.15,69.7736044]
[1673642814377,46.26,17.16,17.15,58.7167044]
[1673642814588,3.08341801,17.158,17.15,58.7167044]
[1673642815022,20.0,17.157,17.15,4.4e-06]
[1673642815215,3.31837707,17.156,17.15,4.4e-06]
[1673642815635,20.31837707,17.156,17.15,4.4e-06]
[1673642816478,3.31837707,17.156,17.15,4.4e-06]
[1673642816689,3.54191548,17.157,17.15,4.4e-06]
[1673642816908,3.64387822,17.158,17.15,4.4e-06]
[1673642817654,20.64387822,17.158,17.15,4.4e-06]
[1673642817855,3.64387822,17.158,17.15,4.4e-06]
[1673642818066,20.64387822,17.158,17.15,4.4e-06]
[1673642819229,3.64387822,17.156,17.15,4.4e-06]
[1673642819544,20.0,17.155,17.15,4.4e-06]
[1673642819859,47.35637822,17.154,17.15,4.4e-06]
[1673642820173,3.64387822,17.152,17.15,4.4e-06]
[1673642820390,40.64387822,17.152,17.15,4.4e-06]
[1673642820577,70.61307102,17.152,17.15,4.4e-06]
[1673642820907,20.0,17.151,17.15,4.4e-06]
[1673642821106,43.64387822,17.151,17.15,4.4e-06]
[1673642821312,60.64387822,17.151,17.15,4.4e-06]
[1673642822153,23.64387822,17.151,17.15,4.4e-06]
[1673642824575,3.64387822,17.151,17.15,4.4e-06]
[1673642824789,3.64387822,17.157,17.15,4.4e-06]
[1673642825003,23.64387822,17.157,17.15,4.4e-06]
[1673642825419,53.61307102,17.157,17.15,4.4e-06]
[1673642825632,20.0,17.155,17.15,4.4e-06]
[1673642825838,40.64387822,17.154,17.15,4.4e-06]
[1673642826047,70.61307102,17.154,17.15,4.4e-06]
[1673642826247,29.9691928,17.153,17.15,4.4e-06]
[1673642826470,23.64387822,17.152,17.15,4.4e-06]
[1673642826694,3.64387822,17.152,17.15,4.4e-06]
[1673642826887,3.64387822,17.153,17.15,4.4e-06]
[1673642828040,3.64387822,17.156,17.15,4.4e-06]
[1673642828250,117.6025,17.158,17.15,4.4e-06]
[1673642828251,3.64387822,17.155,17.15,4.4e-06]
[1673642828478,117.6025,17.158,17.15,4.4e-06]
[1673642828479,53.61307102,17.157,17.15,4.4e-06]
[1673642828664,29.9691928,17.154,17.15,4.4e-06]
[1673642828879,23.64387822,17.153,17.15,4.4e-06]
[1673642829531,3.64387822,17.153,17.15,4.4e-06]
[1673642829724,29.9691928,17.153,17.15,4.4e-06]
[1673642829934,23.64387822,17.152,17.15,4.4e-06]
[1673642830365,53.61307102,17.152,17.15,4.4e-06]
[1673642835417,23.64387822,17.152,17.15,4.4e-06]
[1673642835632,3.64387822,17.152,17.15,4.4e-06]
[1673642835934,3.64387822,17.153,17.15,4.4e-06]
[1673642836335,20.0,17.152,17.15,4.4e-06]
[1673642836568,3.64387822,17.151,17.15,4.4e-06]
[1673642836779,53.61307102,17.151,17.15,4.4e-06]
[1673642839087,103.1465043,17.151,17.15,4.4e-06]
[1673642839284,150.55239815,17.151,17.15,4.4e-06]
[1673642840459,101.01896487,17.151,17.15,4.4e-06]
[1673642842331,150.55239815,17.151,17.15,4.4e-06]
[1673642843377,167.55239815,17.151,17.144,0.004838]
[1673642843691,167.55239815,17.151,17.136,117.601]
[1673642843692,20.0,17.148,17.136,117.601]
[1673642843896,3.64387822,17.147,17.136,117.601]
[1673642844127,20.0,17.146,17.136,117.601]
[1673642844335,3.64387822,17.145,17.136,117.601]
[1673642844961,3.64387822,17.145,17.131,116.7534]
[1673642845165,29.9691928,17.144,17.129,59.0923288]
[1673642845379,37.0,17.143,17.129,59.0923288]
[1673642845817,49.9691928,17.142,17.129,59.0923288]
[1673642846011,29.9691928,17.142,17.129,59.0923288]
[1673642846224,20.0,17.141,17.129,59.0923288]
[1673642848219,20.0,17.141,17.13,20.0]
[1673642849076,20.0,17.141,17.129,59.0923288]
[1673642850437,20.0,17.141,17.13,20.0]
[1673642851907,20.0,17.141,17.129,59.0923288]
[1673642854024,49.9691928,17.141,17.129,59.0923288]
[1673642854207,20.0,17.139,17.129,59.0923288]
[1673642854419,20.0,17.138,17.129,59.0923288]
[1673642855042,20.0,17.139,17.129,59.0923288]
[1673642855694,46.9691928,17.138,17.129,59.0923288]
[1673642856221,20.0,17.139,17.129,59.0923288]
[1673642856434,29.9691928,17.141,17.129,59.0923288]
[1673642856647,20.0,17.14,17.129,59.0923288]
[1673642858636,20.0,17.142,17.129,59.0923288]
[1673642858848,22.21730271,17.146,17.129,59.0923288]
[1673642859050,22.21730271,17.146,17.13,20.0]
[1673642859789,42.21730271,17.146,17.13,20.0]
[1673642860654,22.21730271,17.146,17.13,20.0]
[1673642862130,29.9691928,17.145,17.13,66.19]
[1673642862336,114.7044,17.148,17.13,184.7369]
[1673642862554,114.7044,17.148,17.136,37.0]
[1673642863283,114.7044,17.148,17.136,154.1739]
[1673642863810,29.9691928,17.15,17.136,154.1739]
[1673642864209,20.0,17.149,17.136,154.1739]
[1673642864430,165.18219385,17.154,17.136,154.1739]
[1673642864431,49.9691928,17.153,17.136,154.1739]
[1673642864856,29.9691928,17.152,17.136,154.1739]
[1673642865170,20.0,17.151,17.136,154.1739]
[1673642868425,20.0,17.151,17.136,134.1739]
[1673642868954,17.0,17.15,17.136,117.1739]
[1673642869358,20.0,17.148,17.136,117.1739]
[1673642869803,49.9691928,17.148,17.13,164.7369]
[1673642869999,38.95200124,17.147,17.13,164.7369]
[1673642870316,29.9691928,17.146,17.13,164.7369]
[1673642870532,37.0,17.145,17.13,164.7369]
[1673642870736,20.0,17.144,17.13,164.7369]
[1673642871275,29.9691928,17.143,17.13,164.7369]
[1673642871576,20.0,17.142,17.13,164.7369]
[1673642873052,20.0,17.144,17.13,164.7369]
[1673642873456,20.0,17.144,17.131,20.0]
[1673642874417,20.0,17.144,17.13,184.7369]
[1673642874613,29.9691928,17.143,17.13,164.7369]
[1673642874854,20.0,17.142,17.13,164.7369]
[1673642877052,20.0,17.142,17.13,118.5469]
[1673642877372,20.0,17.142,17.129,59.0923288]
[1673642877373,20.0,17.14,17.129,59.0923288]
[1673642877581,37.0,17.139,17.129,59.0923288]
[1673642877774,2.3325832,17.138,17.135,92.1789719]
[1673642877984,52.301776,17.138,17.135,92.1789719]
[1673642878189,17.0,17.137,17.135,92.1789719]
[1673642878395,2.3325832,17.136,17.135,92.1789719]
[1673642878610,2.3325832,17.137,17.135,92.1789719]
[1673642878824,20.0,17.14,17.135,92.1789719]
[1673642881154,1.93588447,17.139,17.135,92.1789719]
[1673642881976,20.0,17.14,17.135,92.1789719]
[1673642882183,20.0,17.144,17.135,92.1789719]
[1673642882405,47.40589385,17.145,17.135,92.1789719]
[1673642882616,29.9691928,17.149,17.135,92.1789719]
[1673642882825,20.0,17.148,17.135,92.1789719]
[1673642883657,49.9691928,17.151,17.135,92.1789719]
[1673642883863,17.0,17.15,17.135,92.1789719]
[1673642884106,29.9691928,17.147,17.135,92.1789719]
[1673642884290,20.0,17.146,17.135,92.1789719]
[1673642884496,84.40589385,17.146,17.135,92.1789719]
[1673642885981,47.40589385,17.145,17.135,92.1789719]
[1673642886184,20.0,17.143,17.135,92.1789719]
[1673642886518,20.0,17.142,17.135,92.1789719]
[1673642886719,49.9691928,17.142,17.135,92.1789719]
[1673642886917,29.9691928,17.141,17.135,92.1789719]
[1673642887122,20.0,17.14,17.135,92.1789719]
[1673642889139,49.9691928,17.142,17.135,92.1789719]
[1673642889335,20.0,17.142,17.135,92.1789719]
[1673642889544,20.0,17.144,17.135,92.1789719]
[1673642891243,49.9691928,17.144,17.135,92.1789719]
[1673642891461,20.0,17.144,17.135,92.1789719]
[1673642892186,40.0,17.144,17.135,92.1789719]
[1673642892371,69.9691928,17.144,17.135,92.1789719]
[1673642892798,17.0,17.143,17.135,92.1789719]
[1673642893012,20.0,17.142,17.135,92.1789719]
[1673642893854,47.40589385,17.145,17.135,92.1789719]
[1673642894059,29.9691928,17.147,17.135,92.1789719]
[1673642894900,17.0,17.146,17.135,92.1789719]
[1673642895131,20.0,17.145,17.135,92.1789719]
[1673642895331,20.0,17.144,17.135,92.1789719]
[1673642895749,49.9691928,17.144,17.135,92.1789719]
[1673642896682,20.0,17.144,17.135,92.1789719]
[1673642896912,20.0,17.145,17.135,92.1789719]
[1673642897130,17.0,17.146,17.135,92.1789719]
[1673642897636,29.9691928,17.146,17.135,92.1789719]
[1673642897968,71.3074619,17.145,17.135,92.1789719]
[1673642898178,20.0,17.144,17.135,92.1789719]
[1673642898368,49.9691928,17.144,17.135,92.1789719]
[1673642900813,29.9691928,17.143,17.135,92.1789719]
[1673642901443,20.0,17.142,17.135,92.1789719]
[1673642903025,20.0,17.144,17.135,92.1789719]
[1673642903425,29.9691928,17.143,17.135,92.1789719]
[1673642903648,20.0,17.142,17.135,92.1789719]
[1673642904260,29.9691928,17.142,17.135,92.1789719]
[1673642904487,20.0,17.141,17.135,92.1789719]
[1673642905419,49.9691928,17.141,17.135,92.1789719]
[1673642905855,17.0,17.14,17.135,92.1789719]
[1673642906073,20.0,17.139,17.135,92.1789719]
[1673642906777,20.0,17.14,17.135,92.1789719]
[1673642906991,49.9691928,17.142,17.135,92.1789719]
[1673642907740,46.9691928,17.141,17.135,92.1789719]
[1673642907949,20.0,17.14,17.135,92.1789719]
[1673642908365,20.0,17.139,17.135,92.1789719]
[1673642911839,40.0,17.14,17.135,92.1789719]
[1673642912251,17.0,17.139,17.135,92.1789719]
[1673642912475,20.0,17.138,17.135,92.1789719]
[1673642913212,20.0,17.14,17.135,92.1789719]
[1673642913426,20.0,17.139,17.135,92.1789719]
[1673642913649,20.0,17.14,17.135,92.1789719]
[1673642914794,20.0,17.139,17.135,92.1789719]
[1673642915003,37.0,17.139,17.135,92.1789719]
[1673642915217,20.0,17.138,17.135,92.1789719]
[1673642917753,71.3074619,17.138,17.135,92.1789719]
[1673642917938,20.0,17.137,17.135,91.6789719]
[1673642919833,71.3074619,17.138,17.135,91.6789719]
[1673642920359,20.0,17.138,17.135,91.6789719]
[1673642920775,20.0,17.145,17.135,91.6789719]
[1673642921406,67.40589385,17.145,17.135,91.6789719]
[1673642921617,17.0,17.144,17.135,91.1789719]
[1673642921843,20.0,17.143,17.135,91.1789719]
[1673642922055,37.0,17.142,17.135,91.1789719]
[1673642922266,20.0,17.141,17.135,91.1789719]
[1673642922880,37.0,17.14,17.135,91.1789719]
[1673642923305,20.0,17.139,17.135,91.1789719]
[1673642923522,20.0,17.137,17.135,91.1789719]
[1673642923962,20.0,17.139,17.135,91.1789719]
[1673642924148,17.0,17.138,17.135,91.1789719]
[1673642924568,20.0,17.137,17.135,91.1789719]
[1673642925301,20.0,17.137,17.135,0.0089719]
[1673642925511,20.0,17.137,17.129,59.0923288]
[1673642925512,20.0,17.135,17.129,59.0923288]
[1673642926057,20.0,17.133,17.129,59.0923288]
[1673642926474,49.9691928,17.133,17.129,59.0923288]
[1673642926694,20.0,17.132,17.129,52.7473288]
[1673642926895,22.24605136,17.131,17.129,52.7473288]
[1673642927104,20.0,17.13,17.129,52.7473288]
[1673642927301,22.24605136,17.13,17.129,52.7473288]
[1673642928037,22.24605136,17.13,17.129,52.2473288]
[1673642928999,20.0,17.13,17.129,52.2473288]
[1673642930458,20.0,17.144,17.13,20.0]
[1673642930671,50.77,17.15,17.13,50.97]
[1673642930672,20.0,17.15,17.13,50.97]
[1673642930878,237.59364933,17.16,17.13,50.97]
[1673642930879,20.0,17.159,17.13,50.97]
[1673642931085,29.9691928,17.153,17.131,109.1664]
[1673642931304,6.7125,17.158,17.131,109.1664]
[1673642931506,6.7125,17.158,17.14,30.89]
[1673642931721,29.9691928,17.157,17.14,30.89]
[1673642931925,29.9691928,17.157,17.141,17.0]
[1673642932143,36.6816928,17.157,17.132,72.87488287]
[1673642932360,6.7125,17.156,17.132,20.0]
[1673642932681,20.0,17.155,17.132,20.0]
[1673642932988,206.87,17.15,17.131,109.1664]
[1673642933309,73.6816928,17.149,17.131,109.1664]
[1673642934042,45.03700143,17.148,17.131,109.1664]
[1673642934257,37.0,17.147,17.131,109.1664]
[1673642935611,37.0,17.147,17.132,20.0]
[1673642935612,20.0,17.147,17.132,20.0]
[1673642935828,20.0,17.158,17.132,20.0]
[1673642936018,115.3444,17.157,17.133,17.0]
[1673642936228,20.0,17.156,17.133,17.0]
[1673642936673,29.9691928,17.155,17.134,20.0]
[1673642936997,20.0,17.154,17.134,20.0]
[1673642937312,29.9691928,17.153,17.135,17.0]
[1673642937507,20.0,17.152,17.135,17.0]
[1673642937824,29.9691928,17.151,17.136,118.4804]
[1673642938036,20.0,17.15,17.136,118.4804]
[1673642938562,29.9691928,17.149,17.137,17.0]